fUST/lending_fUST_20260226
["ID","MTS","AMOUNT","RATE_DAILY","PERIOD"]
[406686160,1772078554303,-183.0,0.000204,120]
[406686161,1772078554326,-183.0,0.000204,120]
[406686162,1772078554347,-171.0,0.000204,120]
[406686163,1772078554368,-1322.26110715,0.000204,120]
[406686164,1772078554451,-969.73889285,0.000204,120]
[406686165,1772078554474,-611.0,0.000204,120]
[406686166,1772078554495,-161.0,0.000204,120]
[406686167,1772078554516,-367.0,0.000204,120]
[406686168,1772078554538,-220.0,0.000204,120]
[406686169,1772078554565,-432.26110715,0.00021366,120]
[406686170,1772078554639,-391.73889285,0.00021366,120]
[406686171,1772078554661,-495.0,0.00021366,120]
[406686172,1772078554682,-138.26110715,0.00021366,120]
[406686173,1772078554800,-158.73889285,0.00021366,120]
[406686174,1772078554823,-178.0,0.00021366,120]
[406686175,1772078554844,-178.0,0.00021366,120]
[406686176,1772078554866,-161.0,0.00021366,120]
[406686177,1772078554888,-162.0,0.00021366,120]
[406686178,1772078554911,-1409.0,0.0002142,120]
[406686179,1772078554932,-845.0,0.0002142,120]
[406686180,1772078554953,-398.26110715,0.0002142,120]
[406686181,1772078555005,-108.73889285,0.0002142,120]
[406686182,1772078555028,-305.0,0.0002142,120]
[406686183,1772078555056,-183.0,0.0002142,120]
[406686184,1772078555080,-183.0,0.0002142,120]
[406686185,1772078555104,-183.0,0.0002142,120]
[406686186,1772078555127,-171.0,0.0002142,120]
[406686187,1772078555150,-1627.26110715,0.0002142,120]
[406686188,1772078555209,-664.73889285,0.0002142,120]
[406686189,1772078555233,-611.0,0.0002142,120]
[406686190,1772078555257,-367.0,0.0002142,120]
[406686191,1772078555279,-220.0,0.0002142,120]
[406686192,1772078555306,-824.0,0.00022435,120]
[406686193,1772078555331,-495.0,0.00022435,120]
[406686194,1772078555352,-297.0,0.00022435,120]
[406686195,1772078555373,-11.26110715,0.00022435,120]
[406686196,1772078555457,-166.73889285,0.00022435,120]
[406686197,1772078555480,-178.0,0.00022435,120]
[406686198,1772078555503,-161.0,0.00022435,120]
[406686199,1772078555525,-162.0,0.00022435,120]
[406686200,1772078555547,-1409.0,0.00022491,120]
[406686201,1772078555569,-80.23164048,0.00022491,120]
[406686202,1772078555632,-764.76835952,0.00022491,120]
[406686203,1772078555654,-77.23164048,0.00022491,120]
[406686204,1772078555708,-209.35023068,0.00022491,120]
[406686205,1772078568421,-1000.0,0.00012375,2]
[406686206,1772078570521,-531.26142579,0.00012375,2]
[406686207,1772078570544,-468.73857421,0.000125,2]
[406686208,1772078571774,-1000.0,0.000125,2]
[406686209,1772078572173,-1000.0,0.000125,2]
[406686210,1772078572613,-1000.0,0.000125,2]
[406686211,1772078573029,-1000.0,0.000125,2]
[406686212,1772078573480,-1000.0,0.000125,2]
[406686213,1772078574538,-1000.0,0.000125,2]
[406686214,1772078574647,-1000.0,0.000125,2]
[406686215,1772078574723,-1000.0,0.000125,2]
[406686216,1772078574815,-1000.0,0.000125,2]
[406686217,1772078576029,-831.64390031,0.000125,2]
[406686218,1772078576274,-168.35609969,0.00012685,2]
[406686219,1772078576493,-94.9525048,0.00012685,2]
[406686220,1772078576514,-167.30066746,0.00012869,2]
[406686221,1772078576535,-737.74682774,0.00012869,2]
[406686222,1772078576723,-462.25317226,0.00012869,2]
[406686224,1772078826099,-199.9859536,0.00012895,2]
[406686225,1772078838088,-732.3612017,0.00012895,2]
[406686226,1772078949630,-1799.07812965,0.00012766,2]
[406686227,1772078952126,-636.29788704,0.00012766,2]
[406686228,1772078952146,-258.0424324,0.00012794,2]
[406686229,1772078952166,-283.66322372,0.00012821,2]
[406686230,1772078959081,-770.69300259,0.00012821,2]
[406686231,1772078972080,-180.97409954,0.00012821,2]
[406686232,1772078973178,-67.6528447,0.00012895,2]
[406686233,1772078973199,-251.11,0.000131,2]
[406686234,1772078973223,-300.0,0.00013123,2]
[406686235,1772078973245,-1200.0,0.00013124,2]
[406686236,1772078973266,-500.0,0.00013124,2]
[406686237,1772078973285,-633.68705782,0.00013124,2]
[406686238,1772078973307,-500.0,0.00013124,2]
[406686239,1772078973326,-500.0,0.00013124,2]
[406686240,1772078973349,-500.0,0.00013124,2]
[406686241,1772078973371,-500.0,0.00013124,2]
[406686242,1772078973395,-500.0,0.00013124,2]
[406686243,1772078973415,-11563.97156999,0.00013124,2]
[406686244,1772078973434,-502.04106376,0.00013125,2]
[406686245,1772078973460,-500.0,0.00013125,2]
[406686246,1772078973676,-500.0,0.00013125,2]
[406686247,1772078973720,-500.0,0.00013125,2]
[406686248,1772078973742,-500.0,0.00013125,2]
[406686249,1772078973763,-500.0,0.00013125,2]
[406686250,1772078973785,-500.0,0.00013125,2]
[406686251,1772078973807,-500.0,0.00013125,2]
[406686252,1772078973828,-500.0,0.00013125,2]
[406686253,1772078973849,-500.0,0.00013125,2]
[406686254,1772078973871,-500.0,0.00013125,2]
[406686255,1772078973891,-500.0,0.00013125,2]
[406686256,1772078973913,-500.0,0.00013125,2]
[406686257,1772078973935,-440.60803099,0.00013125,2]
[406686258,1772078973955,-500.0,0.00013125,2]
[406686259,1772078973976,-500.0,0.00013125,2]
[406686260,1772078973999,-500.0,0.00013125,2]
[406686261,1772078974020,-500.0,0.00013125,2]
[406686262,1772078974043,-500.0,0.00013125,2]
[406686263,1772078974064,-500.0,0.00013125,2]
[406686264,1772078974088,-500.0,0.00013125,2]
[406686265,1772078974111,-500.0,0.00013125,2]
[406686266,1772078974134,-443.98791192,0.00013125,2]
[406686267,1772078974155,-500.0,0.00013125,2]
[406686268,1772078974177,-300.0,0.00013126,2]
[406686269,1772078974201,-300.0,0.00013126,2]
[406686270,1772078974224,-300.0,0.00013126,2]
[406686271,1772078974247,-300.0,0.00013126,2]
[406686272,1772078974268,-300.0,0.00013126,2]
[406686273,1772078974289,-300.0,0.00013126,2]
[406686274,1772078974310,-300.0,0.00013126,2]
[406686275,1772078974333,-300.0,0.00013126,2]
[406686276,1772078974355,-300.0,0.00013126,2]
[406686277,1772078974378,-300.0,0.00013126,2]
[406686278,1772078974398,-300.0,0.00013126,2]
[406686279,1772078974419,-300.0,0.00013126,2]
[406686280,1772078974441,-300.0,0.00013126,2]
[406686281,1772078974466,-300.0,0.00013126,2]
[406686282,1772078974487,-300.0,0.00013126,2]
[406686283,1772078974507,-500.0,0.00013273,2]
[406686284,1772078974526,-604.20168174,0.00013273,2]
[406686285,1772078974544,-500.0,0.00013273,2]
[406686286,1772078974564,-500.0,0.00013273,2]
[406686287,1772078974583,-500.0,0.00013273,2]
[406686288,1772078974607,-500.0,0.00013273,2]
[406686289,1772078974627,-500.0,0.00013273,2]
[406686290,1772078974646,-500.0,0.00013273,2]
[406686291,1772078974666,-500.0,0.00013273,2]
[406686292,1772078974686,-501.10464966,0.00013273,2]
[406686293,1772078974706,-500.0,0.00013273,2]
[406686294,1772078974725,-500.0,0.00013273,2]
[406686295,1772078974745,-270.43548934,0.00013273,2]
[406686296,1772078974764,-500.0,0.00013273,2]
[406686297,1772078974783,-281.8311,0.00013373,2]
[406686298,1772078974804,-600.0,0.00013537,2]
[406686299,1772078974823,-151.0,0.00013689,2]
[406686300,1772078974842,-151.0,0.00013689,2]
[406686301,1772078974862,-262.89132858,0.00013689,2]
[406686302,1772078974882,-500.0,0.00013698,2]
[406686303,1772078974901,-500.0,0.00013698,2]
[406686304,1772078974922,-621.83,0.00013698,2]
[406686305,1772078974943,-500.0,0.00013698,2]
[406686306,1772078974962,-500.0,0.00013698,2]
[406686307,1772078974981,-338.04894884,0.00013698,2]
[406686308,1772078975002,-1000.0,0.00013699,2]
[406686309,1772078975024,-500.0,0.00013699,2]
[406686310,1772078975045,-237.50461948,0.00013699,2]
[406686311,1772078975066,-376.15252368,0.00013699,2]
[406686312,1772078975086,-171.72669464,0.00013699,2]
[406686313,1772078975106,-425.14418968,0.00013699,2]
[406686314,1772078975129,-500.65490939,0.00013699,2]
[406686315,1772078975151,-503.19022225,0.00013699,2]
[406686316,1772078975171,-500.0,0.00013699,2]
[406686317,1772078975191,-500.0,0.00013699,2]
[406686318,1772078975212,-500.0,0.00013699,2]
[406686319,1772078975231,-501.20848024,0.00013699,2]
[406686320,1772078975252,-500.1978309,0.00013699,2]
[406686321,1772078975272,-500.0,0.00013699,2]
[406686322,1772078975293,-500.0,0.00013699,2]
[406686323,1772078975313,-501.71719372,0.00013699,2]
[406686324,1772078975343,-500.0,0.00013821,2]
[406686325,1772078975365,-500.0,0.00013821,2]
[406686326,1772078975386,-500.0,0.00013821,2]
[406686327,1772078975407,-17.54421288,0.00013821,2]
[406686330,1772079006656,150.74,9.5e-05,2]
[406686331,1772079007338,150.74,9.7e-05,2]
[406686332,1772079007839,150.74,9.8e-05,2]
[406686333,1772079008441,150.74,0.0001,2]
[406686334,1772079009081,150.74,0.000101,2]
[406686335,1772079009620,137.09794395,0.000103,2]
[406686336,1772079009647,13.64205605,0.000103,2]
[406686337,1772079010201,150.74,0.000104,2]
[406686361,1772079033039,-925.78486832,0.00012994,2]
[406686362,1772079033048,-604.0,0.00012994,2]
[406686363,1772079033058,-300.0,0.00013124,2]
[406686364,1772079033067,-300.0,0.00013124,2]
[406686365,1772079033077,-300.0,0.00013124,2]
[406686366,1772079033095,-1200.0,0.00013124,2]
[406686367,1772079033109,-300.0,0.00013124,2]
[406686368,1772079033119,-576.94073206,0.00013125,2]
[406686369,1772079033129,-500.0,0.00013125,2]
[406686370,1772079033139,-500.0,0.00013125,2]
[406686371,1772079033152,-500.0,0.00013125,2]
[406686372,1772079033161,-500.0,0.00013125,2]
[406686373,1772079033172,-500.0,0.00013125,2]
[406686374,1772079033182,-500.0,0.00013125,2]
[406686375,1772079033192,-500.0,0.00013125,2]
[406686376,1772079033202,-393.37198673,0.00013125,2]
[406686377,1772079033212,-500.0,0.00013273,2]
[406686378,1772079033222,-500.0,0.00013273,2]
[406686379,1772079033233,-500.0,0.00013273,2]
[406686380,1772079033243,-500.0,0.00013273,2]
[406686381,1772079033253,-500.0,0.00013273,2]
[406686382,1772079033263,-500.0,0.00013273,2]
[406686383,1772079033272,-500.0,0.00013273,2]
[406686384,1772079033283,-394.86936231,0.00013273,2]
[406686385,1772079033296,-105.13063769,0.00013273,2]
[406686386,1772079033306,-500.0,0.00013273,2]
[406686387,1772079033316,-52.98518911,0.00013385,2]
[406686388,1772079033328,-247.01481089,0.00013385,2]
[406686389,1772079033338,-300.0,0.00013385,2]
[406686390,1772079033348,-300.0,0.00013385,2]
[406686391,1772079033357,-7.35621377,0.00013385,2]
[406686392,1772079033404,-292.64378623,0.00013385,2]
[406686393,1772079033415,-300.0,0.00013385,2]
[406686394,1772079033426,-300.0,0.00013385,2]
[406686395,1772079033437,-300.0,0.00013385,2]
[406686396,1772079033447,-300.0,0.00013385,2]
[406686397,1772079033458,-300.0,0.00013385,2]
[406686398,1772079033468,-53.85295046,0.00013385,2]
[406686399,1772079033483,-246.14704954,0.00013385,2]
[406686400,1772079033494,-300.0,0.00013385,2]
[406686401,1772079033504,-300.0,0.00013385,2]
[406686402,1772079033515,-50.1586762,0.00013385,2]
[406686403,1772079033527,-249.8413238,0.00013385,2]
[406686404,1772079033536,-142.6986762,0.00013385,2]
[406686448,1772079038711,-157.3013238,0.00013385,2]
[406686450,1772079038721,-300.0,0.00013385,2]
[406686452,1772079038730,-595.19032085,0.00013386,2]
[406686517,1772079039345,-4.80967915,0.00013386,2]
[406686519,1772079039354,-332.5970978,0.00013526,2]
[406686521,1772079039365,-500.0,0.00013698,2]
[406686523,1772079039375,-105.65822305,0.00013698,2]
[406686525,1772079039386,-394.34177695,0.00013698,2]
[406686527,1772079039395,-500.81318191,0.00013699,2]
[406686529,1772079039406,-500.0,0.00013699,2]
[406686530,1772079039416,-495.53255835,0.00013699,2]
[406686540,1772079041396,-4.46744165,0.00013699,2]
[406686541,1772079041408,-230.89662837,0.00013821,2]
[406686555,1772079044479,-751.55915875,0.00013821,2]
[406686556,1772079044490,-1000.0,0.00013821,2]
[406686557,1772079044499,-1000.0,0.00013821,2]
[406686558,1772079044509,-1000.0,0.00013821,2]
[406686559,1772079044518,-641.97978034,0.00013821,2]
[406686560,1772079044528,-2499.96892781,0.00014175,2]
[406686561,1772079044537,-441.16919547,0.00014247,2]
[406686562,1772079044546,-512.01103336,0.00014247,2]
[406686563,1772079044558,-454.3,0.00014336,2]
[406686564,1772079044567,-377.31534876,0.00014368,2]
[406686565,1772079044577,-1500.0,0.00014368,2]
[406686566,1772079044586,-1500.0,0.00014368,2]
[406686567,1772079044596,-1617.00736324,0.00014368,2]
[406686568,1772079044605,-500.0,0.00014368,2]
[406686569,1772079044615,-420.0,0.00014391,2]
[406686570,1772079044624,-420.0,0.00014391,2]
[406686571,1772079044633,-420.0,0.00014391,2]
[406686572,1772079044644,-420.0,0.00014391,2]
[406686573,1772079044653,-1680.0,0.00014436,2]
[406686574,1772079044664,-500.0,0.00014642,2]
[406686575,1772079044674,-720.0,0.00014725,2]
[406686576,1772079044684,-304.49007023,0.00014794,2]
[406686577,1772079044693,-491.51109037,0.00014916,2]
[406686578,1772079044703,-2000.0,0.00014916,2]
[406686579,1772079044712,-573.21055552,0.00014916,2]
[406686580,1772079044721,-532.85562158,0.00014999,2]
[406686581,1772079044731,-870.22648807,0.00015,2]
[406686582,1772079044740,-88552.9623195,0.00015,3]
[406686583,1772079044749,-2335.56636764,0.00015369,2]
[406686585,1772079044758,-2500.0,0.00015464,2]
[406686587,1772079044768,-375.89520744,0.00015469,2]
[406686588,1772079044777,-332.5970978,0.00015621,2]
[406686589,1772079044786,-1095.97526162,0.000157,30]
[406686590,1772079044796,-500.0,0.000157,2]
[406686591,1772079044805,-500.0,0.000157,2]
[406686592,1772079044815,-225.0,0.000157,2]
[406686593,1772079044824,-1397.86774368,0.00015731,2]
[406686594,1772079044833,-587.0,0.0001578,2]
[406686595,1772079044842,-587.0,0.0001578,2]
[406686596,1772079044852,-587.0,0.0001578,2]
[406686597,1772079044861,-587.0,0.0001578,2]
[406686598,1772079044871,-2351.0,0.0001588,2]
[406686599,1772079044880,-500.0,0.00016012,2]
[406686600,1772079044890,-500.0,0.00016012,2]
[406686601,1772079044900,-2531.36292138,0.00016012,2]
[406686602,1772079044910,-200.0,0.00016128,3]
[406686603,1772079044920,-864.0,0.00016198,2]
[406686604,1772079044929,-175.0,0.00016485,2]
[406686605,1772079044939,-243.82319783,0.00016514,2]
[406686606,1772079044948,-350.93770806,0.00016794,2]
[406686607,1772079044958,-185.53083201,0.000169,2]
[406686608,1772079044967,-1144.31557996,0.00016989,2]
[406686609,1772079044976,-34276.25229027,0.0001699,2]
[406686610,1772079044986,-43312.05490918,0.00017,2]
[406686611,1772079044995,-2423.2236351,0.00017077,2]
[406686612,1772079045004,-2335.56636759,0.0001708,2]
[406686613,1772079045013,-1402.01429903,0.00017083,2]
[406686614,1772079045022,-185.53083197,0.00017155,2]
[406686615,1772079045032,-175.0,0.0001727,2]
[406686616,1772079045042,-823.0,0.00017303,2]
[406686617,1772079045051,-373.0,0.00017303,2]
[406686618,1772079045061,-823.0,0.00017303,2]
[406686619,1772079045070,-823.0,0.00017303,2]
[406686620,1772079045079,-185.53083197,0.00017409,2]
[406686621,1772079045089,-3292.0,0.00017468,2]
[406686622,1772079045098,-207.13825911,0.0001753,2]
[406686623,1772079045107,-500.0,0.0001753,2]
[406686624,1772079045117,-500.0,0.0001753,2]
[406686625,1772079045126,-500.0,0.0001753,2]
[406686626,1772079045136,-500.0,0.0001753,2]
[406686627,1772079045146,-500.0,0.0001753,2]
[406686628,1772079045156,-500.0,0.0001753,2]
[406686629,1772079045165,-500.0,0.0001753,2]
[406686630,1772079045175,-500.0,0.0001753,2]
[406686631,1772079045184,-500.0,0.0001753,2]
[406686632,1772079045193,-194.72792766,0.0001753,2]
[406686633,1772079045203,-500.0,0.0001753,2]
[406686634,1772079045212,-201.93286099,0.0001753,2]
[406686635,1772079045222,-500.0,0.0001753,2]
[406686636,1772079045231,-500.0,0.0001753,2]
[406686637,1772079045244,-209.40437684,0.0001753,2]
[406686638,1772079045253,-250.0,0.0001753,2]
[406686639,1772079045262,-500.0,0.0001753,2]
[406686640,1772079045272,-500.0,0.0001753,2]
[406686641,1772079045281,-217.15233878,0.0001753,2]
[406686642,1772079045289,-250.0,0.0001753,2]
[406686643,1772079045298,-250.0,0.0001753,2]
[406686644,1772079045308,-628.53613945,0.0001753,2]
[406686645,1772079045317,-225.18697532,0.0001753,2]
[406686646,1772079045326,-250.0,0.0001753,2]
[406686647,1772079045335,-500.0,0.0001753,2]
[406686648,1772079045344,-233.51889341,0.0001753,2]
[406686649,1772079045353,-250.0,0.0001753,2]
[406686650,1772079045363,-500.0,0.0001753,2]
[406686651,1772079045372,-250.0,0.0001753,2]
[406686652,1772079045382,-242.15909246,0.0001753,2]
[406686653,1772079045391,-250.0,0.0001753,2]
[406686654,1772079045400,-500.0,0.0001753,2]
[406686655,1772079045411,-250.0,0.0001753,2]
[406686656,1772079045420,-251.11897888,0.0001753,2]
[406686657,1772079045429,-500.0,0.0001753,2]
[406686658,1772079045438,-250.0,0.0001753,2]
[406686659,1772079045447,-260.4103811,0.0001753,2]
[406686660,1772079045456,-250.0,0.0001753,2]
[406686661,1772079045466,-270.0455652,0.0001753,2]
[406686662,1772079045476,-250.0,0.0001753,2]
[406686663,1772079045489,-280.03725112,0.0001753,2]
[406686664,1772079045499,-250.0,0.0001753,2]
[406686665,1772079045508,-290.39862941,0.0001753,2]
[406686666,1772079045518,-250.0,0.0001753,2]
[406686667,1772079045527,-301.1433787,0.0001753,2]
[406686668,1772079045537,-268.50764097,0.0001753,2]
[406686669,1772079045547,-2579.17784983,0.0001753,2]
[406686670,1772079045558,-699.8284148,0.0001753,2]
[406686671,1772079045567,-250.0,0.0001753,2]
[406686672,1772079045576,-250.0,0.0001753,2]
[406686673,1772079045587,-250.0,0.0001753,2]
[406686674,1772079045596,-250.0,0.0001753,2]
[406686675,1772079045787,-250.0,0.0001753,2]
[406686676,1772079045797,-250.0,0.0001753,2]
[406686677,1772079045807,-256.85648935,0.0001753,2]
[406686678,1772079045818,-250.0,0.0001753,2]
[406686679,1772079045827,-250.0,0.0001753,2]
[406686680,1772079045837,-250.0,0.0001753,2]
[406686681,1772079045846,-250.0,0.0001753,2]
[406686682,1772079045856,-395.23445812,0.00017543,2]
[406686683,1772079045865,-438.88175609,0.00017565,2]
[406686684,1772079045874,-185.53083197,0.00017664,2]
[406686685,1772079045883,-162.20225462,0.00017664,2]
[406686686,1772079045893,-332.5970978,0.00017716,2]
[406686687,1772079045902,-1000.0,0.00017817,2]
[406686688,1772079045916,-2762.22736465,0.0001787,2]
[406686689,1772079045925,-185.53083197,0.00017918,2]
[406686690,1772079045935,-67216.36966447,0.00017997,2]
[406686691,1772079045945,-176.96466812,0.00017999,2]
[406686692,1772079045955,-531237.56637263,0.00018,2]
[406686693,1772079045965,-487.0,0.00018,2]
[406686694,1772079045974,-487.0,0.00018,2]
[406686695,1772079045984,-487.0,0.00018,2]
[406686696,1772079045993,-487.0,0.00018,2]
[406686697,1772079046003,-487.0,0.00018,2]
[406686698,1772079046012,-487.0,0.00018,2]
[406686699,1772079046021,-487.0,0.00018,2]
[406686700,1772079046031,-487.0,0.00018,2]
[406686701,1772079046040,-487.0,0.00018,2]
[406686702,1772079046050,-487.0,0.00018,2]
[406686703,1772079046059,-487.0,0.00018,2]
[406686705,1772079046068,-487.0,0.00018,2]
[406686706,1772079046078,-487.0,0.00018,2]
[406686707,1772079046088,-487.0,0.00018,2]
[406686708,1772079046097,-487.0,0.00018,2]
[406686709,1772079046106,-487.0,0.00018,2]
[406686710,1772079046116,-487.0,0.00018,2]
[406686712,1772079046125,-487.0,0.00018,2]
[406686714,1772079046134,-487.0,0.00018,2]
[406686715,1772079046144,-487.0,0.00018,2]
[406686716,1772079046154,-487.0,0.00018,2]
[406686717,1772079046165,-487.0,0.00018,2]
[406686718,1772079046175,-487.0,0.00018,2]
[406686719,1772079046184,-487.0,0.00018,2]
[406686720,1772079046193,-487.0,0.00018,2]
[406686721,1772079046203,-597.43,0.00018,2]
[406686722,1772079046213,-2674.60743027,0.00018078,2]
[406686723,1772079046222,-812.0,0.000184,2]
[406686725,1772079046231,-1386.0,0.00018566,2]
[406686726,1772079046240,-637.0,0.00018566,2]
[406686727,1772079046249,-780.23423305,0.00018615,2]
[406686728,1772079046259,-2181.0,0.00018623,2]
[406686729,1772079046268,-728.0,0.00018623,2]
[406686730,1772079046278,-536.168,0.00018623,2]
[406686731,1772079046287,-544.16,0.00018623,2]
[406686732,1772079046297,-2773.56790519,0.00018626,2]
[406686733,1772079046306,-2335.56636759,0.0001879,2]
[406686734,1772079046315,-397.38534589,0.00018794,2]
[406686735,1772079046325,-4990.86767871,0.0001881,2]
[406686736,1772079046334,-199.0,0.00018973,2]
[406686737,1772079046344,-174.0,0.00018973,2]
[406686738,1772079046353,-1152.0,0.00018973,2]
[406686739,1772079046362,-2603.49,0.00019,2]
[406686740,1772079046371,-21254.18130381,0.00019,2]
[406686741,1772079046380,-574.569219,0.00019057,7]
[406686742,1772079046389,-2876.18991768,0.00019174,2]
[406686743,1772079046399,-606.0,0.00019215,2]
[406686744,1772079046410,-150.0,0.00019336,2]
[406686745,1772079046419,-150.0,0.00019336,2]
[406686746,1772079046429,-200.0,0.00019384,4]
[406686747,1772079046439,-276.23462901,0.000194,2]
[406686748,1772079046448,-786.0,0.000195,2]
[406686749,1772079046457,-200.81193151,0.00019504,2]
[406686750,1772079046467,-361.10001524,0.00019504,2]
[406686751,1772079046476,-1000.0,0.00019599,2]
[406686752,1772079046489,-244.0,0.00019599,2]
[406686754,1772079046499,-347.89076574,0.000196,2]
[406686755,1772079046509,-744.71502317,0.00019651,2]
[406686756,1772079046518,-2982.60894464,0.00019722,2]
[406686757,1772079046527,-150.0,0.000198,2]
[406686758,1772079046538,-332.5970978,0.00019811,2]
[406686759,1772079046547,-509.03900824,0.00019814,2]
[406686761,1772079046556,-420.16337548,0.00019815,5]
[406686762,1772079046566,-3073.2296289,0.00019815,5]
[406686763,1772079046575,-392.95614919,0.00019815,5]
[406686764,1772079046584,-161.15810213,0.00019815,5]
[406686765,1772079046593,-709.018,0.000199,2]
[406686766,1772079046603,-16380.4642529,0.00019933,2]
[406686767,1772079046613,-2337.5292631,0.00019933,2]
[406686768,1772079046622,-1311.26,0.0001999,3]
[406686769,1772079046631,-655.63,0.0001999,3]
[406686770,1772079046641,-327.81,0.0001999,3]
[406686771,1772079046651,-163.91,0.0001999,3]
[406686772,1772079046661,-491.74,0.0001999,3]
[406686773,1772079046670,-165768.75552474,0.0002,2]
[406686774,1772079046679,-281.6,0.0002,2]
[406686775,1772079046689,-6169.77069729,0.0002,20]
[406686776,1772079046697,-254033.52730904,0.0002,2]
[406686777,1772079047397,-585.75366434,0.0002,2]
[406686778,1772079048136,-500.0,0.00013125,2]
[406686779,1772079048145,-5000.0,0.00013562,2]
[406686780,1772079048154,-282.67325828,0.00014999,2]
[406686781,1772079048165,-250.0,0.0001753,2]
[406686782,1772079048174,-250.0,0.0001753,2]
[406686783,1772079048184,-250.0,0.0001753,2]
[406686784,1772079048194,-198.60746162,0.0001753,2]
[406686785,1772079048203,-10339.62475418,0.0002,2]
[406686786,1772079048241,-40593.4273698,0.0002,2]
[406686787,1772079122013,172.38,0.00012329,2]
[406686789,1772079251035,1239.5932849,0.00012001,2]
[406686790,1772079259272,5000.0,0.00012001,2]
[406686791,1772079265892,-1000.0,0.00012205,2]
[406686792,1772079267410,-1000.0,0.00012205,2]
[406686793,1772079268583,-1000.0,0.00012205,2]
[406686794,1772079268977,-1000.0,0.00012205,2]
[406686795,1772079269555,-1000.0,0.00012205,2]
[406686796,1772079269736,-819.53,0.00012329,2]
[406686797,1772079269756,-180.47,0.00012329,2]
[406686798,1772079270108,-502.47,0.00012329,2]
[406686799,1772079270131,-497.53,0.00012329,2]
[406686800,1772079270554,-71.59,0.00012329,2]
[406686801,1772079270577,-474.27,0.00012329,2]
[406686802,1772079270598,-251.11,0.000127,2]
[406686803,1772079270619,-203.03,0.00012718,2]
[406686804,1772079271104,-89.03328118,0.00012718,2]
[406686805,1772079271126,-300.0,0.00012863,2]
[406686806,1772079271147,-300.0,0.00012993,2]
[406686807,1772079275804,310.96671882,0.00013,2]
[406686808,1772079275827,1000.0,0.00013,2]
[406686809,1772079275848,1000.0,0.00013,2]
[406686810,1772079275871,1000.0,0.00013,2]
[406686811,1772079275892,1000.0,0.00013,2]
[406686812,1772079281236,-395.22,0.00012329,2]
[406686813,1772079281258,-604.78,0.00013,2]
[406686814,1772079290616,5000.0,0.00012001,2]
[406686815,1772079293560,-1000.0,0.00012205,2]
[406686816,1772079294549,-1000.0,0.00012205,2]
[406686817,1772079295491,-1000.0,0.00012205,2]
[406686818,1772079296429,-1000.0,0.00012205,2]
[406686819,1772079297459,-1000.0,0.00012205,2]
[406686820,1772079302341,1063.0,0.00012001,2]
[406686821,1772079308614,-1000.0,0.00012205,2]
[406686822,1772079309621,-1000.0,0.00012205,2]
[406686823,1772079310590,-1000.0,0.00012205,2]
[406686824,1772079311534,-1000.0,0.00012205,2]
[406686825,1772079312523,-1000.0,0.00012205,2]
[406686826,1772079314352,256.37534125,0.00012001,2]
[406686827,1772079314467,-329.35,0.00012329,2]
[406686828,1772079314491,-274.46,0.00012329,2]
[406686829,1772079314513,-228.72,0.00012329,2]
[406686830,1772079314538,-84.25328118,0.00013,2]
[406686831,1772079318615,83.21671882,0.00012329,2]